Cogmind - Beta 11.1 @@@ ROGUE MODE // 2022.05.15 @ 22:17:29 Player: Triffids Result: Self-destructed Performance ------------- Evolutions (1) 500 Regions Visited (2) 400 Robots Destroyed (23) 115 Value Destroyed (413) 413 Prototype IDs (0) 0 Alien Tech Used (0) 0 Bonus (2) 2 TOTAL SCORE: 1430 Bonus ------- High Alert Combat Kills 2 Cogmind --------- Core Integrity 386/400 Matter 290/300 Energy 130/265 System Corruption 0% Temperature Cool (0) Movement Rolling (100) Location -9/Materials Parts ------- > --- POWER (1) -------- Improved Ion Engine > --- PROPULSION (2) --- Compact Wheel Compact Wheel > --- UTILITY (4) ------ Medium Storage Unit Sensor Array Signal Interpreter Light Armor Plating > --- WEAPON (2) ------- Medium Laser Light Cannon > --- INVENTORY (10) --- Light Ion Engine Aluminum Leg Aluminum Leg Terrain Scanner Light Assault Rifle Heavy Assault Rifle Autogun Peak State ------------ > --- POWER ------------ Improved Ion Engine > --- PROPULSION ------- Compact Wheel Compact Wheel > --- UTILITY ---------- Medium Storage Unit Sensor Array Signal Interpreter Targeting Computer > --- WEAPON ----------- Medium Laser Light Cannon > --- INVENTORY -------- Light Ion Engine Aluminum Leg Aluminum Leg Terrain Scanner Light Armor Plating Light Assault Rifle Heavy Assault Rifle Autogun [Rating: 11] Favorites ----------- Power Ion Engine Engine Ion Engine Propulsion Compact Wheel Wheel Compact Wheel Utility Medium Storage Unit Device Terrain Scanner Storage Medium Storage Unit Processor Targeting Computer Protection Light Armor Plating Weapon Medium Laser Energy Gun Medium Laser Ballistic Gun Assault Rifle Ballistic Cannon Light Cannon Build | -11 -10 -9 ------- Run | Scr Mat Mat Slots Evolved 2 | . . 2 Power . | . . . Propulsion . | . . . Utility 2 | . . 2 Weapon . | . . . Parts Attached 19 | 6 7 6 Power 2 | 1 . 1 Engine 2 | 1 . 1 Core . | . . . Reactor . | . . . Propulsion 4 | 2 1 1 Treads . | . . . Leg . | . . . Wheel 4 | 2 1 1 Hover . | . . . Flight . | . . . Utility 8 | 1 4 3 Device 2 | . 1 1 Storage 2 | 1 1 . Processor 3 | . 2 1 Hackware . | . . . Protection 1 | . . 1 Artifact . | . . . Weapon 5 | 2 2 1 Energy Gun 2 | 1 . 1 Energy Cannon . | . . . Ballistic Gun 2 | 1 1 . Ballistic Cannon 1 | . 1 . Launcher . | . . . Special Weapon . | . . . Impact Weapon . | . . . Slashing Weapon . | . . . Piercing Weapon . | . . . Special Melee Weapon . | . . . Unidentified Prototypes . | . . . Parts Lost 6 | . 3 3 Power 1 | . . 1 Propulsion 2 | . 1 1 Utility 1 | . 1 . Weapon 2 | . 1 1 Highest Loss Streak 3 | . 3 3 To Critical Strikes . | . . . Average Slot Usage (%) 96 | . 97 96 Engine 13 | . 14 8 Wheel 27 | . 28 20 Device 7 | . 6 11 Storage 13 | . 14 11 Processor 7 | . 4 22 Energy Gun 13 | . 14 11 Ballistic Gun 10 | . 11 . Ballistic Cannon 3 | . 2 11 Naked Turns . | . . . Heaviest Build 23 | 14 20 23 Greatest Support 32 | 32 32 32 Greatest Overweight (x) . | . . . Average Overweight (x) . | . . . Largest Inventory Capacity 10 | 8 10 10 Average Capacity 9 | 7 9 10 Most Carried 10 | 6 10 8 Average Carried 6 | 4 6 6 Final Capacity 10 | 8 10 10 Final Carried 8 | 4 8 7 Class Distribution -------------------- 100% | Mutant Dominant Class ---------------- Mutant | -10/Materials Mutant | -9/Materials Resources | -11 -10 -9 ----------- Run | Scr Mat Mat Matter Collected 515 | 197 243 75 Remotely . | . . . Salvage Created 708 | . 546 162 Parts 44 | . 37 7 Haulers Intercepted 2 | . 2 . Recyclers Shooed 1 | . . 1 Parts Field Recycled . | . . . Retrieved Matter . | . . . Parts Self-Destructed . | . . . Prevented . | . . . Kills | -11 -10 -9 ------- Run | Scr Mat Mat Combat Hostiles Destroyed 16 | . 14 2 Guns 14 | . 13 1 Cannons 1 | . . 1 Classes Destroyed 7 | . 6 1 Builder 1 | . 1 . Hauler 2 | . 2 . Recycler 2 | . 1 1 Watcher 2 | . 2 . Swarmer 9 | . 9 . Grunt 5 | . 5 . Sentry 2 | . . 2 Best Kill Streak 5 | . 5 3 Combat Bots Only 3 | . 3 2 Max Kills in Single Turn 2 | . 2 1 Gunslinging . | . . . Exploded . | . . . Melee . | . . . Uniques/NPCs Destroyed . | . . . Combat | -11 -10 -9 -------- Run | Scr Mat Mat Damage Taken 590 | . 409 181 Core 121 | . 107 14 Absorbed by Shields . | . . . Core Remaining (%) 78 | 100 57 . Volleys Fired 59 | . 49 10 Largest 2 | . 2 2 Hottest 85 | . 85 85 Shots Fired 118 | . 98 20 Gun 106 | . 96 10 Cannon 12 | . 2 10 Launcher . | . . . Special . | . . . Kinetic 59 | . 49 10 Thermal 59 | . 49 10 Explosive . | . . . Electromagnetic . | . . . Robot Hit Streak 10 | . 10 10 Robot Miss Streak 5 | . 5 1 Penetration Max . | . . . Secondary Targets . | . . . Shots Hit Robots 76 | . 59 17 Core Hits 31 | . 26 5 Critical Kills . | . . . Critical Parts Destroyed . | . . . Critical Strikes 2 | . 1 1 Burn 2 | . 1 1 Melee Attacks . | . . . Impact . | . . . Slashing . | . . . Piercing . | . . . Sneak Attacks . | . . . Combat Hostiles . | . . . Follow-up Attacks . | . . . Damage Inflicted 985 | . 741 244 Guns 819 | . 706 113 Cannons 166 | . 35 131 Explosions . | . . . Melee . | . . . Ramming . | . . . Kinetic 473 | . 342 131 Thermal 512 | . 399 113 Explosive . | . . . Electromagnetic . | . . . Impact . | . . . Slashing . | . . . Piercing . | . . . Highest Corruption . | . . . Average Corruption . | . . . Corruption Purged . | . . . Corruption Blocked . | . . . Overload Shots . | . . . Overflow Damage . | . . . Projectiles . | . . . Explosions . | . . . Melee . | . . . Knockbacks 1 | . 1 . Impact . | . . . Kinetic 1 | . 1 . Secondary . | . . . Self-Inflicted Damage . | . . . Shots . | . . . Rammed . | . . . Targets Rammed . | . . . Kicked . | . . . Crushed . | . . . Highest Temperature 325 | . 325 122 Average Temperature 70 | . 69 73 Received Heat Transfer 237 | . 156 81 Effects 2 | . 2 . Interference 2 | . 2 . Siege Activations . | . . . Robots Corrupted . | . . . Combat Hostiles . | . . . Parts Fried . | . . . Impact Corruptions . | . . . Robots Melted 1 | . 1 . Combat Hostiles 1 | . 1 . Parts Melted 5 | . 5 . Heat Transferred 1665 | . 1258 407 Parts Sabotaged . | . . . Parts Stolen . | . . . Parts Stripped . | . . . Power Chain Reactions . | . . . Missiles Intercepted . | . . . Alert | -11 -10 -9 ------- Run | Scr Mat Mat Peak Influence 424 | . 424 166 Initial 113 | . . 113 Average 170 | . 189 141 Maximum Alert Level 2 | . 2 . Low Security (%) 52 | 100 40 100 Level 1 42 | . 52 . Level 2 5 | . 7 . Level 3 . | . . . Level 4 . | . . . Level 5 . | . . . High Security . | . . . Max Security . | . . . Squads Dispatched 2 | . 2 . Investigation 1 | . 1 . Extermination . | . . . Reinforcement 1 | . 1 . Assault . | . . . Garrison . | . . . Intercept . | . . . Searches Triggered . | . . . Construction Impeded . | . . . Haulers Reinforced . | . . . Active Scanning Responses . | . . . Cargo Convoy Interrupts . | . . . Stealth | -11 -10 -9 --------- Run | Scr Mat Mat Distress Signals 2 | . 2 . Communications Jammed . | . . . Distress Signals . | . . . Times Spotted 20 | . 18 2 Peak Tracking Total 4 | . 4 2 Tactical Retreats 1 | . 1 . Traps | -11 -10 -9 ------- Run | Scr Mat Mat Traps Triggered 1 | . 1 . Indirectly . | . . . Trap Hack Attempts . | . . . Triggered . | . . . Disarmed . | . . . Reprogrammed . | . . . Reused . | . . . Traps Extracted . | . . . Installed . | . . . Triggered . | . . . Machines | -11 -10 -9 ---------- Run | Scr Mat Mat Machines Disabled 1 | . 1 . Max in Single Turn 1 | . 1 . Machines Sabotaged . | . . . Garrisons Compromised . | . . . Overloaded Fab Kills . | . . . Hacking | -11 -10 -9 --------- Run | Scr Mat Mat Machines Accessed 2 | . 2 . Terminals 2 | . 2 . Fabricators . | . . . Repair Stations . | . . . Recycling Units . | . . . Scanalyzers . | . . . Garrison Access . | . . . Total Hacks 4 | . 4 . Successful 1 | . 1 . Failed 3 | . 3 . Catastrophic 1 | . 1 . Database Lockouts . | . . . Manual 2 | . 2 . Terminals 4 | . 4 . Fabricators . | . . . Repair Stations . | . . . Recycling Units . | . . . Scanalyzers . | . . . Garrison Access . | . . . Terminal Hacks . | . . . Fabricator Hacks . | . . . Repair Station Hacks . | . . . Recycling Unit Hacks . | . . . Scanalyzer . | . . . Garrison Access Hacks . | . . . Unauthorized Hacks 1 | . 1 . Terminals 1 | . 1 . Botnet 1 | . 1 . Fabricators . | . . . Repair Stations . | . . . Recycling Units . | . . . Scanalyzers . | . . . Garrison Access . | . . . Data Cores Recovered . | . . . Used . | . . . Hacking Detections 2 | . 2 . Full Trace Events . | . . . Feedback Events . | . . . Feedback Blocked . | . . . Robot Schematics Acquired . | . . . Robots Built . | . . . Authchips . | . . . Time . | . . . Total Robot Build Rating . | . . . Part Schematics Acquired . | . . . Parts Built . | . . . Authchips . | . . . Time . | . . . Total Part Build Rating . | . . . Parts Repaired . | . . . Time . | . . . Parts Recycled . | . . . Recycled Matter . | . . . Retrieved Matter . | . . . Retrieved Components . | . . . Parts Scanalyzed . | . . . Part Schematics Acquired . | . . . Parts Damaged . | . . . Bothacking | -11 -10 -9 ------------ Run | Scr Mat Mat Used RIF Installer . | . . . Robots Hacked . | . . . Non-combat . | . . . Combat . | . . . Robot Hacks Applied . | . . . Relay Couplers Released . | . . . Fabnet Peak Effective % . | . . . Robots Rewired . | . . . Allies Hacked . | . . . Hacks Repelled . | . . . Allies | -11 -10 -9 -------- Run | Scr Mat Mat Total Allies . | . . . Largest Group . | . . . Highest-Rated Group . | . . . Highest-Rated Ally . | . . . Total Orders . | . . . Ally Attacks . | . . . Total Damage . | . . . Kills . | . . . Allies Corrupted . | . . . Allies Melted . | . . . Intel | -11 -10 -9 ------- Run | Scr Mat Mat Robot Analysis Total . | . . . Derelict Logs Recovered . | . . . Drone Launches . | . . . Drone Recoveries . | . . . Exploration | -11 -10 -9 ------------- Run | Scr Mat Mat Turns Passed 701 | 46 565 90 Spaces Moved 445 | 40 367 38 Core 15 | 15 . . Treads . | . . . Legs . | . . . Wheels 430 | 25 367 38 Hover . | . . . Flight . | . . . Fastest Speed 50 | 50 100 100 Average Speed 98 | 81 100 100 Slowest Speed 100 | 100 100 100 Overloaded Moves . | . . . Propulsion Burnouts . | . . . Robots Hopped . | . . . Cave-ins Triggered . | . . . Exploration Rate (%) 23 | 4 62 5 Regions Visited 2 Branch Regions . Pre-discovered Areas . | . . . Known Exits Taken . | . . . Unknown Exits Taken 2 | 1 1 . Scrap Searched . | . . . Spaces Dug . | . . . Terrain Destroyed . | . . . Melee . | . . . Projectile . | . . . AOE . | . . . Terrain Rammed . | . . . Walls Destroyed . | . . . Machines Disabled . | . . . Actions | -11 -10 -9 --------- Run | Scr Mat Mat Total 589 | 51 469 69 Wait 46 | . 35 11 Move 443 | 39 366 38 Hop . | . . . Pick Up 16 | 6 7 3 Fast Attach 10 | 4 4 2 Attach 8 | 2 2 4 Detach 3 | . 2 1 Swap 1 | . 1 . Drop 3 | . 3 . Fire 59 | . 49 10 Melee . | . . . Ram . | . . . Kick . | . . . Crush . | . . . Escape Stasis . | . . . Rewire . | . . . Trap . | . . . Miscellaneous . | . . . Route ------- -11/Scrapyard -10/Materials (discovered 3 exits: [*Mat x2] / [*Min]) -9/Materials History --------- Turn | Location | Event 30 | -11/Scrapyard | Discovered new exit (range 13) 47 | -11/Scrapyard | Entered Materials 157 | -10/Materials | Discovered new exit (range 5) 308 | -10/Materials | Build established: Mutant 420 | -10/Materials | Discovered new exit (range 11) 456 | -10/Materials | Discovered new exit (range 14) 534 | -10/Materials | Lost 3 parts (1n1u1w) 612 | -10/Materials | Entered another Materials area 612 | -9/Materials | Evolved 2 slots: Utility x2 702 | -9/Materials | Lost 3 parts (1p1n1w) 702 | -9/Materials | Self-destructed Last Messages --------------- 00622_ Acquired Autogun. 00624_ Critical hit (Burn: +37). 00659_ Y-45 Defender suffers critical hit (Burn). 00659_ Y-45 Defender destroyed. 00665_ Med. Laser destroyed. 00668_ Com. Wheel destroyed. 00671_ Ion Engine destroyed. 00672_ Y-45 Defender destroyed. 00675_ R-06 Scavenger destroyed. 00679_ Acquired Com. Wheel. 00683_ Acquired Lgt. Armor Plating. 00684_ Acquired 44 matter. 00686_ Acquired 2 matter. 00691_ Acquired Hvy. Assault Rifle. 00693_ K-01 Serf collects debris. 00693_ Acquired Imp. Ion Engine. 00694_ Acquired 29 matter. 00695_ K-01 Serf collects debris. 00700_ Discarded Targeting Computer. 00702_ K-01 Serf collects debris. Map ----- +----------------------------------------------------+ | ?????????????????????????????????????????????????? | | ?????????????????????????????????????????????????? | | ?????????????????????????????????????????????????? | | ?????????????????????????????????????????????????? | | ?????????????????????????????????????????????????? | | ?????????????????????????????????????????????????? | | ?????????????????????????????????????????????????? | | ?????????????????????????????????????????????????? | | ?????????????????????????????????????????????????? | | ?????????????????????????????????????????????????? | | ?????????????????????????????????????????????????? | | ?????????????????????????????????????????????????? | | ???????????????????????????? ????????????????????? | | ??????????????????????????? ?????????????????? | | ??????????????????????????? ??????????????????? | | ??????????????????????????? | ??????????????????? | | ??????????????????????????? #??????????????????? | | ????????????????########### #??????????????????? | | ????????????????# # #??????????????????? | | ????????????????# %+ #??????????????????? | | ????????????????# % % # #??????????????????? | | ????????????????# [ ! ! # #??????????????????? | | ????????????????#####+##### ########???????????? | | ???????????????????#% % #???????????? | | ???????????????????# u%k +???????????? | | ???????????????????# !!!@ #???????????? | | ????????????? kk !!! ###### #???????????? | | ?????????? # !! ##?????????????????? | | ?????????? # "#????x????????????? | | ??????????? ?# T#?????????????????? | | ???????????#######?# "#?????????????????? | | ?????????########### ##?????????????????? | | ?????? #??????????????????? | | ?????? #" "####??????????????????? | | ?????????########### #"Y"#?????????????????????? | | ???????????????????# #"""#?????????????????????? | | ???????????????????# #####?????????????????????? | | ???????????????????#####?????????????????????????? | | ?????????????????????????????????????????????????? | | ?????????????????????????????????????????????????? | | ?????????????????????????????????????????????????? | | ?????????????????????????????????????????????????? | | ?????????????????????????????????????????????????? | | ?????????????????????????????????????????????????? | | ?????????????????????????????????????????????????? | | ?????????????????????????????????????????????????? | | ?????????????????????????????????????????????????? | | ?????????????????????????????????????????????????? | | ?????????????????????????????????????????????????? | | ?????????????????????????????????????????????????? | +----------------------------------------------------+ Best States ------------- Heat Dissipation 28 Energy Generation 12 Energy Capacity 265 Matter Stores 300 Matter Capacity 300 Sight Range 16 Robot Scan Range 14 Terrain Scan Range 14 Terrain Scan Density 10 Evasion (%) 50 Targeting Accuracy 5 Item Schematics ----------------- None Robot Schematics ------------------ None Fabricated ------------ Nothing Alien Tech Used ----------------- None Achievements -------------- None Challenges ------------ None Game ------ Seed ImpactRefineryFlail Manual? 0 Play Time 00:10:03 Cumulative 113.3 hours Start 2022.05.14 @ 10:53:11 End 2022.05.15 @ 22:17:29 Sessions 2 Manual Loads 0 Difficulty Rogue Special Mode None Game No. 142 Rogue 142 Adventurer 0 Explorer 0 Win Type - Total 0 Types 0/0/0/0/0/0/0/0/0 Lore% 41 Gallery% 43 Achievement% 31 Wizard Run 0 Options --------- ASCII 0 Keyboard 1 Movement Vi Keybinds 0 Fullscreen 0 Font 20/SmallcapsGlow Map View 76x50 Tactical HUD 1 Map Filters NONE Filters NONE Steam 1 RUN: 7ba0e40e-7e53-49d0-b960-ff1c3fe6a4e3